[Event "Titled Tuesday Blitz January 10 Early 2023"]
[White "Vlassov, Nikolai"]
[Black "Chos, Alexey"]
[WhiteFideId "4103360"]
[BlackFideId "14117762"]
[WhiteElo "2283"]
[BlackElo "2296"]
[Result "1-0"]
[Round "07"]
[TimeControl "180+2"]
[Date "2023.01.10"]
[WhiteClock "0:00:17"]
[BlackClock "0:00:02"]

1. e4 {[%clk 0:03:00]}  c5 {[%clk 0:02:57]} 2. c3 {[%clk 0:03:00]}  Nf6 {[%clk 0:02:55]} 3. e5 {[%clk 0:03:00]}  Nd5 {[%clk 0:02:55]} 4. d4 {[%clk 0:03:01]}  cxd4 {[%clk 0:02:55]} 5. cxd4 {[%clk 0:03:02]}  Nc6 {[%clk 0:02:54]} 6. Nc3 {[%clk 0:03:02]}  Nxc3 {[%clk 0:02:52]} 7. bxc3 {[%clk 0:03:02]}  d5 {[%clk 0:02:52]} 8. Bd3 {[%clk 0:03:01]}  g6 {[%clk 0:02:46]} 9. f4 {[%clk 0:03:00]}  Bg7 {[%clk 0:02:45]} 10. Nf3 {[%clk 0:02:56]}  O-O {[%clk 0:02:44]} 11. O-O {[%clk 0:02:55]}  Bg4 {[%clk 0:02:43]} 12. h3 {[%clk 0:02:54]}  Bxf3 {[%clk 0:02:43]} 13. Qxf3 {[%clk 0:02:54]}  e6 {[%clk 0:02:43]} 14. Bd2 {[%clk 0:02:53]}  f6 {[%clk 0:02:40]} 15. exf6 {[%clk 0:02:50]}  Bxf6 {[%clk 0:02:39]} 16. Rae1 {[%clk 0:02:50]}  Qd7 {[%clk 0:02:37]} 17. Qg4 {[%clk 0:02:49]}  Rae8 {[%clk 0:02:37]} 18. f5 {[%clk 0:02:34]}  e5 {[%clk 0:02:07]} 19. fxg6 {[%clk 0:02:28]}  Qxg4 {[%clk 0:02:06]} 20. gxh7+ {[%clk 0:02:28]}  Kg7 {[%clk 0:02:04]} 21. hxg4 {[%clk 0:02:26]}  e4 {[%clk 0:02:03]} 22. Bb5 {[%clk 0:02:22]}  Kxh7 {[%clk 0:02:02]} 23. Rf5 {[%clk 0:02:19]}  a6 {[%clk 0:02:02]} 24. Ba4 {[%clk 0:02:17]}  b5 {[%clk 0:01:49]} 25. Bb3 {[%clk 0:02:12]}  Ne7 {[%clk 0:01:48]} 26. Rh5+ {[%clk 0:02:11]}  Kg6 {[%clk 0:01:46]} 27. Bxd5 {[%clk 0:02:08]}  Nxd5 {[%clk 0:01:45]} 28. Rxd5 {[%clk 0:02:08]}  Bh4 {[%clk 0:01:44]} 29. Re2 {[%clk 0:01:47]}  e3 {[%clk 0:01:43]} 30. Be1 {[%clk 0:01:44]}  Bf2+ {[%clk 0:01:42]} 31. Kf1 {[%clk 0:01:25]}  Bg3+ {[%clk 0:01:00]} 32. Rf5 {[%clk 0:01:20]}  Rh8 {[%clk 0:00:59]} 33. Rh5 {[%clk 0:01:05]}  Rhf8+ {[%clk 0:00:53]} 34. Kg1 {[%clk 0:01:04]}  Bf2+ {[%clk 0:00:52]} 35. Kh2 {[%clk 0:01:00]}  Rf4 {[%clk 0:00:40]} 36. Kh3 {[%clk 0:00:56]}  Ree4 {[%clk 0:00:40]} 37. Re5 {[%clk 0:00:22]}  Rf8 {[%clk 0:00:05]} 38. g3 {[%clk 0:00:18]}  Rxe5 {[%clk 0:00:02]} 39. dxe5 {[%clk 0:00:18]}  Kg5 {[%clk 0:00:02]} 40. Kg2 {[%clk 0:00:17]}  Kxg4 {[%clk 0:00:02]} 41. Bxf2 {[%clk 0:00:17]}  exf2 {[%clk 0:00:03]} 42. Rxf2 {[%clk 0:00:17]}  Rc8 {[%clk 0:00:03]} 43. Rf4+ {[%clk 0:00:16]}  Kg5 {[%clk 0:00:03]} 44. Rf3 {[%clk 0:00:17]}  Rc5 {[%clk 0:00:03]} 45. Re3 {[%clk 0:00:17]}  Rc7 {[%clk 0:00:02]} 46. e6 {[%clk 0:00:17]}  Re7 {[%clk 0:00:01]} 47. Kf3 {[%clk 0:00:17]}  Kf6 {[%clk 0:00:02]} 48. g4 {[%clk 0:00:17]}  a5 {[%clk 0:00:01]} 49. Kf4 {[%clk 0:00:17]}  b4 {[%clk 0:00:02]} 50. g5+ {[%clk 0:00:17]}  Kg6 {[%clk 0:00:02]} 51. cxb4 {[%clk 0:00:18]}  axb4 {[%clk 0:00:02]} 52. Ke5 {[%clk 0:00:18]}  Kxg5 {[%clk 0:00:02]} 53. Kd6 {[%clk 0:00:18]}  Rxe6+ {[%clk 0:00:02]} 54. Rxe6 {[%clk 0:00:18]}  b3 {[%clk 0:00:02]} 55. axb3 {[%clk 0:00:17]} 1-0


[Site "https://www.chess.com"]

[Event "Titled Tuesday Blitz January 10 Early 2023"]
[White "Osmak, Yuliia"]
[Black "Degtiarev, Evgeny"]
[WhiteFideId "14101602"]
[BlackFideId "4149610"]
[WhiteElo "2440"]
[BlackElo "2385"]
[Result "1-0"]
[Round "07"]
[TimeControl "180+2"]
[Date "2023.01.10"]
[WhiteClock "0:00:01"]
[BlackClock "0:00:01"]

1. e4 {[%clk 0:02:55]}  e5 {[%clk 0:02:59]} 2. Nf3 {[%clk 0:02:54]}  Nc6 {[%clk 0:02:59]} 3. Nc3 {[%clk 0:02:54]}  Nf6 {[%clk 0:02:59]} 4. Bb5 {[%clk 0:02:52]}  Nd4 {[%clk 0:02:57]} 5. Bc4 {[%clk 0:02:47]}  Nxf3+ {[%clk 0:02:53]} 6. Qxf3 {[%clk 0:02:48]}  c6 {[%clk 0:02:52]} 7. d3 {[%clk 0:02:44]}  h6 {[%clk 0:02:50]} 8. O-O {[%clk 0:02:42]}  d6 {[%clk 0:02:49]} 9. Qe2 {[%clk 0:02:32]}  g5 {[%clk 0:02:49]} 10. Be3 {[%clk 0:02:24]}  Be6 {[%clk 0:02:40]} 11. Bxe6 {[%clk 0:02:21]}  fxe6 {[%clk 0:02:41]} 12. Rad1 {[%clk 0:02:09]}  c5 {[%clk 0:02:37]} 13. a3 {[%clk 0:01:52]}  a6 {[%clk 0:02:01]} 14. b4 {[%clk 0:01:52]}  Qc7 {[%clk 0:01:55]} 15. bxc5 {[%clk 0:01:50]}  dxc5 {[%clk 0:01:56]} 16. a4 {[%clk 0:01:37]}  Bd6 {[%clk 0:01:52]} 17. Nb1 {[%clk 0:01:36]}  b5 {[%clk 0:01:46]} 18. Nd2 {[%clk 0:01:32]}  O-O {[%clk 0:01:43]} 19. Ra1 {[%clk 0:01:22]}  Kg7 {[%clk 0:01:20]} 20. Rfb1 {[%clk 0:01:21]}  b4 {[%clk 0:01:14]} 21. Nc4 {[%clk 0:01:19]}  Be7 {[%clk 0:01:12]} 22. a5 {[%clk 0:01:14]}  Rab8 {[%clk 0:01:02]} 23. Bc1 {[%clk 0:01:12]}  Rb5 {[%clk 0:00:57]} 24. Bb2 {[%clk 0:01:11]}  Nd7 {[%clk 0:00:58]} 25. Qg4 {[%clk 0:01:05]}  Kf7 {[%clk 0:00:40]} 26. Qh3 {[%clk 0:00:56]}  Rh8 {[%clk 0:00:34]} 27. Rf1 {[%clk 0:00:40]}  Bf6 {[%clk 0:00:33]} 28. Qh5+ {[%clk 0:00:34]}  Kg7 {[%clk 0:00:31]} 29. h3 {[%clk 0:00:30]}  Nf8 {[%clk 0:00:21]} 30. g3 {[%clk 0:00:22]}  Ng6 {[%clk 0:00:20]} 31. Kh1 {[%clk 0:00:17]}  b3 {[%clk 0:00:20]} 32. cxb3 {[%clk 0:00:08]}  Rxb3 {[%clk 0:00:21]} 33. Rad1 {[%clk 0:00:05]}  Rd8 {[%clk 0:00:21]} 34. f4 {[%clk 0:00:04]}  Rdxd3 {[%clk 0:00:17]} 35. fxg5 {[%clk 0:00:03]}  hxg5 {[%clk 0:00:15]} 36. Rxf6 {[%clk 0:00:02]}  Kxf6 {[%clk 0:00:11]} 37. Rf1+ {[%clk 0:00:03]}  Kg7 {[%clk 0:00:11]} 38. Nxe5 {[%clk 0:00:03]}  Qxe5 {[%clk 0:00:02]} 39. Bxe5+ {[%clk 0:00:03]}  Nxe5 {[%clk 0:00:03]} 40. Qxg5+ {[%clk 0:00:03]}  Ng6 {[%clk 0:00:03]} 41. Qf6+ {[%clk 0:00:03]}  Kh6 {[%clk 0:00:03]} 42. Rg1 {[%clk 0:00:01]}  Rxg3 {[%clk 0:00:02]} 43. Rxg3 {[%clk 0:00:02]}  Rxg3 {[%clk 0:00:03]} 44. Kh2 {[%clk 0:00:02]}  Rg5 {[%clk 0:00:02]} 45. Qxe6 {[%clk 0:00:02]}  Re5 {[%clk 0:00:01]} 46. Qc4 {[%clk 0:00:02]}  Kg5 {[%clk 0:00:01]} 47. Qxa6 {[%clk 0:00:02]}  Rxe4 {[%clk 0:00:01]} 48. Qc6 {[%clk 0:00:01]}  Re5 {[%clk 0:00:01]} 49. a6 {[%clk 0:00:01]} 1-0


[Site "https://www.chess.com"]

[Event "Titled Tuesday Blitz January 10 Early 2023"]
[White "Ovezdurdyyeva, Jemal"]
[Black "Arngrimsson, Dagur"]
[WhiteFideId "14001888"]
[BlackFideId "2301288"]
[WhiteElo "2078"]
[BlackElo "2370"]
[Result "0-1"]
[Round "07"]
[TimeControl "180+2"]
[Date "2023.01.10"]
[WhiteClock "0:01:14"]
[BlackClock "0:01:13"]

1. e4 {[%clk 0:03:00]}  c5 {[%clk 0:02:55]} 2. Nf3 {[%clk 0:02:59]}  d6 {[%clk 0:02:55]} 3. d4 {[%clk 0:02:59]}  cxd4 {[%clk 0:02:55]} 4. Nxd4 {[%clk 0:03:00]}  Nf6 {[%clk 0:02:54]} 5. Nc3 {[%clk 0:03:00]}  g6 {[%clk 0:02:51]} 6. Be2 {[%clk 0:03:00]}  Bg7 {[%clk 0:02:51]} 7. O-O {[%clk 0:03:00]}  O-O {[%clk 0:02:52]} 8. Be3 {[%clk 0:03:01]}  Nc6 {[%clk 0:02:51]} 9. Kh1 {[%clk 0:02:56]}  Bd7 {[%clk 0:02:50]} 10. f4 {[%clk 0:02:53]}  Rc8 {[%clk 0:02:47]} 11. e5 {[%clk 0:02:39]}  dxe5 {[%clk 0:02:45]} 12. Nxc6 {[%clk 0:02:39]}  Bxc6 {[%clk 0:02:45]} 13. fxe5 {[%clk 0:02:39]}  Ne4 {[%clk 0:02:45]} 14. Bd4 {[%clk 0:02:12]}  Qa5 {[%clk 0:02:28]} 15. Nxe4 {[%clk 0:02:04]}  Bxe4 {[%clk 0:02:26]} 16. c3 {[%clk 0:02:04]}  Bxe5 {[%clk 0:02:18]} 17. Bxe5 {[%clk 0:01:54]}  Qxe5 {[%clk 0:02:18]} 18. Bf3 {[%clk 0:01:53]}  Bxf3 {[%clk 0:02:17]} 19. Qxf3 {[%clk 0:01:54]}  Rc6 {[%clk 0:02:04]} 20. Rae1 {[%clk 0:01:53]}  Qc5 {[%clk 0:01:53]} 21. Qg3 {[%clk 0:01:42]}  Rd8 {[%clk 0:01:44]} 22. h3 {[%clk 0:01:32]}  Kg7 {[%clk 0:01:41]} 23. Qh4 {[%clk 0:01:27]}  Rf6 {[%clk 0:01:38]} 24. Rxf6 {[%clk 0:01:24]}  exf6 {[%clk 0:01:39]} 25. Rf1 {[%clk 0:01:21]}  Qe5 {[%clk 0:01:33]} 26. Qf2 {[%clk 0:01:21]}  b6 {[%clk 0:01:17]} 27. Rd1 {[%clk 0:01:14]}  Rxd1+ {[%clk 0:01:13]} 0-1


[Site "https://www.chess.com"]

[Event "Titled Tuesday Blitz January 10 Early 2023"]
[White "Hirneise, Jens"]
[Black "Doluhanova, Evgeniya"]
[WhiteFideId "24614734"]
[BlackFideId "14112035"]
[WhiteElo "2277"]
[BlackElo "2275"]
[Result "1-0"]
[Round "07"]
[TimeControl "180+2"]
[Date "2023.01.10"]
[WhiteClock "0:00:36"]
[BlackClock "0:00:05"]

1. d4 {[%clk 0:02:28]}  Nf6 {[%clk 0:02:59]} 2. Bg5 {[%clk 0:02:27]}  e6 {[%clk 0:02:58]} 3. Nd2 {[%clk 0:02:24]}  c5 {[%clk 0:02:58]} 4. e3 {[%clk 0:02:20]}  cxd4 {[%clk 0:02:56]} 5. exd4 {[%clk 0:02:20]}  h6 {[%clk 0:02:55]} 6. Bxf6 {[%clk 0:02:18]}  Qxf6 {[%clk 0:02:54]} 7. Ngf3 {[%clk 0:02:18]}  Nc6 {[%clk 0:02:53]} 8. Ne4 {[%clk 0:02:11]}  Qd8 {[%clk 0:02:52]} 9. c3 {[%clk 0:02:10]}  d6 {[%clk 0:02:50]} 10. Bd3 {[%clk 0:02:09]}  Be7 {[%clk 0:02:49]} 11. O-O {[%clk 0:02:09]}  O-O {[%clk 0:02:46]} 12. Re1 {[%clk 0:02:09]}  Bd7 {[%clk 0:02:45]} 13. Ng3 {[%clk 0:02:05]}  f5 {[%clk 0:02:38]} 14. d5 {[%clk 0:02:00]}  exd5 {[%clk 0:02:34]} 15. Bxf5 {[%clk 0:01:58]}  Be8 {[%clk 0:01:34]} 16. Qxd5+ {[%clk 0:01:55]}  Bf7 {[%clk 0:01:34]} 17. Be6 {[%clk 0:01:54]}  Bxe6 {[%clk 0:01:26]} 18. Rxe6 {[%clk 0:01:52]}  Kh8 {[%clk 0:01:24]} 19. Rae1 {[%clk 0:01:48]}  Bf6 {[%clk 0:01:12]} 20. Nh5 {[%clk 0:01:45]}  Ne5 {[%clk 0:01:05]} 21. Nxf6 {[%clk 0:01:37]}  gxf6 {[%clk 0:01:01]} 22. Nh4 {[%clk 0:01:27]}  Rg8 {[%clk 0:00:58]} 23. f4 {[%clk 0:01:21]}  Qb6+ {[%clk 0:00:53]} 24. Qd4 {[%clk 0:01:05]}  Nd3 {[%clk 0:00:40]} 25. Rd1 {[%clk 0:00:42]}  Qxd4+ {[%clk 0:00:25]} 26. cxd4 {[%clk 0:00:43]}  Nxb2 {[%clk 0:00:19]} 27. Rb1 {[%clk 0:00:42]}  Nd3 {[%clk 0:00:15]} 28. Rxf6 {[%clk 0:00:42]}  Rae8 {[%clk 0:00:05]} 29. Nf5 {[%clk 0:00:36]} 1-0


[Site "https://www.chess.com"]

[Event "Titled Tuesday Blitz January 10 Early 2023"]
[White "Kuzmin, Roman"]
[Black "Gatterer, Florian"]
[WhiteFideId "44134932"]
[BlackFideId "811688"]
[WhiteElo "2198"]
[BlackElo "2170"]
[Result "1/2-1/2"]
[Round "07"]
[TimeControl "180+2"]
[Date "2023.01.10"]
[WhiteClock "0:01:10"]
[BlackClock "0:00:22"]

1. e4 {[%clk 0:03:00]}  c5 {[%clk 0:02:51]} 2. Nf3 {[%clk 0:02:59]}  e6 {[%clk 0:02:52]} 3. d4 {[%clk 0:02:57]}  cxd4 {[%clk 0:02:53]} 4. Nxd4 {[%clk 0:02:58]}  Nf6 {[%clk 0:02:53]} 5. Nc3 {[%clk 0:02:56]}  Nc6 {[%clk 0:02:53]} 6. Nxc6 {[%clk 0:02:56]}  bxc6 {[%clk 0:02:53]} 7. Bd3 {[%clk 0:02:55]}  d5 {[%clk 0:02:52]} 8. Qe2 {[%clk 0:02:54]}  Be7 {[%clk 0:02:52]} 9. O-O {[%clk 0:02:53]}  O-O {[%clk 0:02:51]} 10. b3 {[%clk 0:02:45]}  a5 {[%clk 0:02:51]} 11. Bb2 {[%clk 0:02:42]}  d4 {[%clk 0:02:42]} 12. Na4 {[%clk 0:02:39]}  e5 {[%clk 0:02:42]} 13. Rac1 {[%clk 0:02:31]}  c5 {[%clk 0:02:38]} 14. Ba3 {[%clk 0:02:24]}  Bg4 {[%clk 0:02:08]} 15. f3 {[%clk 0:02:21]}  Bd7 {[%clk 0:01:57]} 16. Bxc5 {[%clk 0:02:18]}  Bxa4 {[%clk 0:01:56]} 17. Bxe7 {[%clk 0:02:16]}  Qxe7 {[%clk 0:01:57]} 18. bxa4 {[%clk 0:02:15]}  Rac8 {[%clk 0:01:46]} 19. Bc4 {[%clk 0:02:06]}  Qc5 {[%clk 0:01:41]} 20. Bb3 {[%clk 0:02:02]}  Rfd8 {[%clk 0:01:07]} 21. Kh1 {[%clk 0:01:58]}  d3 {[%clk 0:01:05]} 22. Qf2 {[%clk 0:01:51]}  Qxf2 {[%clk 0:00:51]} 23. Rxf2 {[%clk 0:01:49]}  dxc2 {[%clk 0:00:51]} 24. Rfxc2 {[%clk 0:01:46]}  Rxc2 {[%clk 0:00:50]} 25. Bxc2 {[%clk 0:01:25]}  Rc8 {[%clk 0:00:50]} 26. Rd1 {[%clk 0:01:25]}  Kf8 {[%clk 0:00:49]} 27. Bb3 {[%clk 0:01:24]}  Ke7 {[%clk 0:00:48]} 28. Kg1 {[%clk 0:01:24]}  g5 {[%clk 0:00:34]} 29. Kf2 {[%clk 0:01:21]}  h5 {[%clk 0:00:34]} 30. Ke3 {[%clk 0:01:20]}  Rc3+ {[%clk 0:00:32]} 31. Kd2 {[%clk 0:01:18]}  Rc7 {[%clk 0:00:31]} 32. Ke2 {[%clk 0:01:15]}  h4 {[%clk 0:00:28]} 33. g3 {[%clk 0:01:13]}  hxg3 {[%clk 0:00:24]} 34. hxg3 {[%clk 0:01:14]}  g4 {[%clk 0:00:24]} 35. Rh1 {[%clk 0:01:11]}  gxf3+ {[%clk 0:00:23]} 36. Kxf3 {[%clk 0:01:10]}  Rc3+ {[%clk 0:00:23]} 37. Kg2 {[%clk 0:01:10]}  Nxe4 {[%clk 0:00:22]} 1/2-1/2


[Site "https://www.chess.com"]

[Event "Titled Tuesday Blitz January 10 Early 2023"]
[White "Vasques, Antonio Pedro Freixial"]
[Black "Becerra, Juan David"]
[WhiteFideId "1908332"]
[BlackFideId "4404998"]
[WhiteElo "2214"]
[BlackElo "2382"]
[Result "1-0"]
[Round "07"]
[TimeControl "180+2"]
[Date "2023.01.10"]
[WhiteClock "0:00:18"]
[BlackClock "0:00:04"]

1. Nf3 {[%clk 0:02:24]}  d5 {[%clk 0:02:57]} 2. g3 {[%clk 0:02:23]}  Bg4 {[%clk 0:02:56]} 3. Bg2 {[%clk 0:02:24]}  Nd7 {[%clk 0:02:55]} 4. O-O {[%clk 0:02:24]}  c6 {[%clk 0:02:53]} 5. c4 {[%clk 0:02:24]}  Bxf3 {[%clk 0:02:52]} 6. Bxf3 {[%clk 0:02:24]}  Ne5 {[%clk 0:02:52]} 7. cxd5 {[%clk 0:02:22]}  Nxf3+ {[%clk 0:02:51]} 8. exf3 {[%clk 0:02:22]}  Qxd5 {[%clk 0:02:35]} 9. Nc3 {[%clk 0:02:15]}  Qd7 {[%clk 0:02:35]} 10. d4 {[%clk 0:02:13]}  Nf6 {[%clk 0:02:34]} 11. Qb3 {[%clk 0:02:12]}  e6 {[%clk 0:02:31]} 12. Bg5 {[%clk 0:02:11]}  Nd5 {[%clk 0:02:31]} 13. Rac1 {[%clk 0:02:01]}  h6 {[%clk 0:02:24]} 14. Nxd5 {[%clk 0:01:56]}  hxg5 {[%clk 0:02:20]} 15. Ne3 {[%clk 0:01:54]}  Bd6 {[%clk 0:02:12]} 16. Nc4 {[%clk 0:01:47]}  O-O-O {[%clk 0:02:05]} 17. Rfd1 {[%clk 0:01:44]}  Kb8 {[%clk 0:02:03]} 18. Na5 {[%clk 0:01:43]}  Ka8 {[%clk 0:01:59]} 19. a4 {[%clk 0:01:38]}  Rh3 {[%clk 0:01:29]} 20. Qe3 {[%clk 0:01:01]}  Rdh8 {[%clk 0:01:12]} 21. Qxg5 {[%clk 0:01:00]}  Rxh2 {[%clk 0:01:11]} 22. Kf1 {[%clk 0:01:00]}  f6 {[%clk 0:01:04]} 23. Qe3 {[%clk 0:00:58]}  Qc7 {[%clk 0:01:02]} 24. Qxe6 {[%clk 0:00:45]}  Bxg3 {[%clk 0:00:53]} 25. Nxc6 {[%clk 0:00:32]}  Rxf2+ {[%clk 0:00:34]} 26. Kg1 {[%clk 0:00:30]}  bxc6 {[%clk 0:00:30]} 27. Rxc6 {[%clk 0:00:28]}  Qf4 {[%clk 0:00:28]} 28. Rc8+ {[%clk 0:00:23]}  Rxc8 {[%clk 0:00:14]} 29. Qxc8+ {[%clk 0:00:24]}  Qb8 {[%clk 0:00:12]} 30. Qc6+ {[%clk 0:00:23]}  Qb7 {[%clk 0:00:12]} 31. Qe8+ {[%clk 0:00:22]}  Bb8 {[%clk 0:00:04]} 32. Kxf2 {[%clk 0:00:20]}  Qxb2+ {[%clk 0:00:05]} 33. Qe2 {[%clk 0:00:18]}  Qc3 {[%clk 0:00:04]} 34. Rd3 {[%clk 0:00:18]}  Qc4 {[%clk 0:00:04]} 35. Qe4+ {[%clk 0:00:18]} 1-0


[Site "https://www.chess.com"]

[Event "Titled Tuesday Blitz January 10 Early 2023"]
[White "Tania, Sachdev"]
[Black "Marn, Jan"]
[WhiteFideId "5007844"]
[BlackFideId "14619245"]
[WhiteElo "2389"]
[BlackElo "2345"]
[Result "0-1"]
[Round "07"]
[TimeControl "180+2"]
[Date "2023.01.10"]
[WhiteClock "0:01:05"]
[BlackClock "0:00:31"]

1. d4 {[%clk 0:03:00]}  d5 {[%clk 0:02:57]} 2. c4 {[%clk 0:03:01]}  e6 {[%clk 0:02:57]} 3. Nf3 {[%clk 0:03:01]}  Nf6 {[%clk 0:02:56]} 4. Nc3 {[%clk 0:03:01]}  c5 {[%clk 0:02:43]} 5. cxd5 {[%clk 0:02:55]}  exd5 {[%clk 0:02:44]} 6. Bg5 {[%clk 0:02:55]}  Nc6 {[%clk 0:02:34]} 7. e3 {[%clk 0:02:54]}  Be6 {[%clk 0:02:32]} 8. Bb5 {[%clk 0:02:46]}  h6 {[%clk 0:02:23]} 9. Bh4 {[%clk 0:02:43]}  g5 {[%clk 0:02:22]} 10. Bg3 {[%clk 0:02:43]}  Ne4 {[%clk 0:02:22]} 11. O-O {[%clk 0:02:32]}  Nxg3 {[%clk 0:01:50]} 12. fxg3 {[%clk 0:02:28]}  Bg7 {[%clk 0:01:49]} 13. dxc5 {[%clk 0:02:20]}  O-O {[%clk 0:01:50]} 14. Nd4 {[%clk 0:02:13]}  Qe7 {[%clk 0:01:00]} 15. Bxc6 {[%clk 0:01:56]}  bxc6 {[%clk 0:01:00]} 16. b4 {[%clk 0:01:56]}  Bd7 {[%clk 0:00:59]} 17. Rc1 {[%clk 0:01:36]}  Qxe3+ {[%clk 0:00:58]} 18. Kh1 {[%clk 0:01:32]}  Qxd4 {[%clk 0:00:58]} 19. Qf3 {[%clk 0:01:32]}  Qxb4 {[%clk 0:00:54]} 20. h3 {[%clk 0:01:29]}  Rae8 {[%clk 0:00:43]} 21. Qd3 {[%clk 0:01:20]}  Qd4 {[%clk 0:00:39]} 22. Qa6 {[%clk 0:01:20]}  Re3 {[%clk 0:00:33]} 23. Ne2 {[%clk 0:01:05]}  Qe4 {[%clk 0:00:33]} 24. Rf2 {[%clk 0:01:05]}  Bc8 {[%clk 0:00:31]} 0-1


[Site "https://www.chess.com"]

[Event "Titled Tuesday Blitz January 10 Early 2023"]
[White "Kaplan, Avi Harrison"]
[Black "Fathy, Elameir"]
[WhiteFideId "30934559"]
[BlackFideId "10600396"]
[WhiteElo "2146"]
[BlackElo "2300"]
[Result "0-1"]
[Round "07"]
[TimeControl "180+2"]
[Date "2023.01.10"]
[WhiteClock "0:00:02"]
[BlackClock "0:00:06"]

1. b3 {[%clk 0:02:56]}  d5 {[%clk 0:02:39]} 2. Bb2 {[%clk 0:02:55]}  Bf5 {[%clk 0:02:39]} 3. Nf3 {[%clk 0:02:55]}  e6 {[%clk 0:02:39]} 4. g3 {[%clk 0:02:54]}  c6 {[%clk 0:02:37]} 5. Bg2 {[%clk 0:02:55]}  h6 {[%clk 0:02:37]} 6. O-O {[%clk 0:02:54]}  Nf6 {[%clk 0:02:38]} 7. d3 {[%clk 0:02:54]}  Be7 {[%clk 0:02:38]} 8. Nbd2 {[%clk 0:02:55]}  O-O {[%clk 0:02:39]} 9. Re1 {[%clk 0:02:55]}  a5 {[%clk 0:02:39]} 10. e4 {[%clk 0:02:54]}  Bh7 {[%clk 0:02:40]} 11. Qe2 {[%clk 0:02:53]}  a4 {[%clk 0:02:40]} 12. exd5 {[%clk 0:02:46]}  cxd5 {[%clk 0:02:38]} 13. Ne5 {[%clk 0:02:39]}  Nbd7 {[%clk 0:02:25]} 14. f4 {[%clk 0:02:17]}  Qc7 {[%clk 0:02:14]} 15. c4 {[%clk 0:02:12]}  a3 {[%clk 0:02:03]} 16. Bc3 {[%clk 0:02:09]}  Rfd8 {[%clk 0:01:45]} 17. Kh1 {[%clk 0:02:07]}  Nc5 {[%clk 0:01:02]} 18. b4 {[%clk 0:01:44]}  Na4 {[%clk 0:01:01]} 19. Nxf7 {[%clk 0:01:40]}  Nxc3 {[%clk 0:00:56]} 20. Qxe6 {[%clk 0:01:40]}  Kf8 {[%clk 0:00:44]} 21. Ne5 {[%clk 0:01:06]}  Bxb4 {[%clk 0:00:30]} 22. Ndf3 {[%clk 0:00:56]}  Re8 {[%clk 0:00:26]} 23. Qh3 {[%clk 0:00:48]}  Qc8 {[%clk 0:00:11]} 24. Qh4 {[%clk 0:00:41]}  Kg8 {[%clk 0:00:10]} 25. Bh3 {[%clk 0:00:36]}  Qd8 {[%clk 0:00:07]} 26. Nd4 {[%clk 0:00:33]}  dxc4 {[%clk 0:00:05]} 27. Be6+ {[%clk 0:00:33]}  Rxe6 {[%clk 0:00:03]} 28. Nxe6 {[%clk 0:00:34]}  Qd5+ {[%clk 0:00:04]} 29. Kg1 {[%clk 0:00:35]}  Qxe6 {[%clk 0:00:05]} 30. Nxc4 {[%clk 0:00:34]}  Bc5+ {[%clk 0:00:04]} 31. Kg2 {[%clk 0:00:32]}  Qc6+ {[%clk 0:00:05]} 32. Kh3 {[%clk 0:00:27]}  Qd7+ {[%clk 0:00:05]} 33. Kg2 {[%clk 0:00:25]}  Qxd3 {[%clk 0:00:06]} 34. Ne5 {[%clk 0:00:22]}  Qd2+ {[%clk 0:00:06]} 35. Kh3 {[%clk 0:00:18]}  Nce4 {[%clk 0:00:07]} 36. Rec1 {[%clk 0:00:01]}  Nf2+ {[%clk 0:00:07]} 37. Kg2 {[%clk 0:00:02]}  Nd3+ {[%clk 0:00:06]} 38. Kh3 {[%clk 0:00:02]}  Nxc1 {[%clk 0:00:07]} 39. Rb1 {[%clk 0:00:03]}  Bxb1 {[%clk 0:00:05]} 40. Ng4 {[%clk 0:00:02]}  Bf5 {[%clk 0:00:06]} 0-1


[Site "https://www.chess.com"]

[Event "Titled Tuesday Blitz January 10 Early 2023"]
[White "Petrova, Irina"]
[Black "Carbone, Diego"]
[WhiteFideId "14124122"]
[BlackFideId "3002179"]
[WhiteElo "2108"]
[BlackElo "2336"]
[Result "0-1"]
[Round "07"]
[TimeControl "180+2"]
[Date "2023.01.10"]
[WhiteClock "0:01:29"]
[BlackClock "0:01:42"]

1. e4 {[%clk 0:03:00]}  c5 {[%clk 0:02:57]} 2. Nf3 {[%clk 0:03:00]}  e6 {[%clk 0:02:57]} 3. c4 {[%clk 0:02:59]}  Nc6 {[%clk 0:02:55]} 4. Nc3 {[%clk 0:03:00]}  a6 {[%clk 0:02:51]} 5. Be2 {[%clk 0:02:59]}  Qc7 {[%clk 0:02:51]} 6. O-O {[%clk 0:02:58]}  Nf6 {[%clk 0:02:50]} 7. d4 {[%clk 0:02:57]}  cxd4 {[%clk 0:02:46]} 8. Nxd4 {[%clk 0:02:57]}  Bb4 {[%clk 0:02:42]} 9. f3 {[%clk 0:02:51]}  Nxd4 {[%clk 0:02:38]} 10. Be3 {[%clk 0:02:14]}  Nxe2+ {[%clk 0:02:34]} 11. Qxe2 {[%clk 0:02:14]}  Bc5 {[%clk 0:02:33]} 12. Rad1 {[%clk 0:02:13]}  O-O {[%clk 0:02:31]} 13. Kh1 {[%clk 0:02:11]}  d6 {[%clk 0:02:27]} 14. Bf4 {[%clk 0:02:07]}  h6 {[%clk 0:02:15]} 15. e5 {[%clk 0:02:01]}  dxe5 {[%clk 0:02:13]} 16. Bxe5 {[%clk 0:02:02]}  Qe7 {[%clk 0:02:12]} 17. Bxf6 {[%clk 0:01:56]}  Qxf6 {[%clk 0:02:11]} 18. Ne4 {[%clk 0:01:57]}  Qe7 {[%clk 0:02:10]} 19. a3 {[%clk 0:01:55]}  a5 {[%clk 0:02:05]} 20. Nc3 {[%clk 0:01:44]}  b6 {[%clk 0:02:00]} 21. Rd2 {[%clk 0:01:39]}  Bb7 {[%clk 0:01:47]} 22. Rfd1 {[%clk 0:01:40]}  Rad8 {[%clk 0:01:47]} 23. Ne4 {[%clk 0:01:39]}  Bxe4 {[%clk 0:01:44]} 24. Qxe4 {[%clk 0:01:40]}  Rxd2 {[%clk 0:01:44]} 25. Rxd2 {[%clk 0:01:41]}  Rd8 {[%clk 0:01:44]} 26. Rd3 {[%clk 0:01:30]}  Rxd3 {[%clk 0:01:42]} 27. Qxd3 {[%clk 0:01:31]}  Qd6 {[%clk 0:01:42]} 28. Qe2 {[%clk 0:01:29]}  Qd4 {[%clk 0:01:42]} 0-1


[Site "https://www.chess.com"]